[Event "Early-Titled-Tuesday-Blitz-April-16-2024"]
[Site "Chess.com"]
[Date "2024.04.16"]
[Round "3"]
[White "margarita_2703"]
[Black "lluiss"]
[Result "1-0"]
[WhiteElo "2355"]
[BlackElo "2080"]
[TimeControl "180+1"]
[EndTime "8:28:54 PDT"]
[Termination "margarita_2703 won on time"]

1. e4 {[%clk 0:03:00.9]} 1... c5 {[%clk 0:02:58.2]} 2. Nf3 {[%clk 0:03:00.7]}
2... d6 {[%clk 0:02:58.2]} 3. d4 {[%clk 0:02:52.6]} 3... cxd4 {[%clk 0:02:57]}
4. Qxd4 {[%clk 0:02:53.5]} 4... Nc6 {[%clk 0:02:56]} 5. Bb5 {[%clk 0:02:52.9]}
5... Bd7 {[%clk 0:02:56.2]} 6. Bxc6 {[%clk 0:02:53]} 6... Bxc6 {[%clk
0:02:57.1]} 7. Nc3 {[%clk 0:02:53.4]} 7... Nf6 {[%clk 0:02:55.6]} 8. Bg5 {[%clk
0:02:53.9]} 8... e6 {[%clk 0:02:55.9]} 9. O-O-O {[%clk 0:02:53.1]} 9... Be7
{[%clk 0:02:56.1]} 10. Qd3 {[%clk 0:02:53.7]} 10... O-O {[%clk 0:02:55.5]} 11.
Nd4 {[%clk 0:02:54.4]} 11... Qa5 {[%clk 0:02:52.3]} 12. f4 {[%clk 0:02:50.9]}
12... Rfc8 {[%clk 0:02:43.8]} 13. Kb1 {[%clk 0:02:50]} 13... a6 {[%clk
0:02:19.6]} 14. h4 {[%clk 0:02:48.2]} 14... Qc7 {[%clk 0:01:44.3]} 15. f5 {[%clk
0:02:47.4]} 15... e5 {[%clk 0:01:42.8]} 16. Nb3 {[%clk 0:02:40]} 16... b5 {[%clk
0:01:41.9]} 17. Bxf6 {[%clk 0:02:21.4]} 17... Bxf6 {[%clk 0:01:41.4]} 18. g4
{[%clk 0:02:22.3]} 18... b4 {[%clk 0:01:40.8]} 19. Ne2 {[%clk 0:02:18.4]} 19...
Bb5 {[%clk 0:01:29]} 20. Qd2 {[%clk 0:02:16.7]} 20... a5 {[%clk 0:01:24.9]} 21.
g5 {[%clk 0:02:15.6]} 21... a4 {[%clk 0:01:23.2]} 22. Nbc1 {[%clk 0:02:13.2]}
22... Bd8 {[%clk 0:01:13.3]} 23. g6 {[%clk 0:02:11.7]} 23... fxg6 {[%clk
0:01:00.8]} 24. fxg6 {[%clk 0:02:12.6]} 24... h6 {[%clk 0:00:58.6]} 25. Rh2
{[%clk 0:02:11.1]} 25... b3 {[%clk 0:00:55.8]} 26. cxb3 {[%clk 0:02:08.5]} 26...
axb3 {[%clk 0:00:55.5]} 27. Nxb3 {[%clk 0:02:09.4]} 27... Bc4 {[%clk 0:00:55.7]}
28. Rh3 {[%clk 0:02:06.9]} 28... Qa7 {[%clk 0:00:55]} 29. a3 {[%clk 0:01:55.4]}
29... Rab8 {[%clk 0:00:50.5]} 30. Nec1 {[%clk 0:01:52.2]} 30... Rc6 {[%clk
0:00:50.7]} 31. Rc3 {[%clk 0:01:49.9]} 31... Bxh4 {[%clk 0:00:47.4]} 32. Rxc4
{[%clk 0:01:49.2]} 32... Rxc4 {[%clk 0:00:42]} 33. Qd5+ {[%clk 0:01:47.3]} 33...
Kh8 {[%clk 0:00:41.9]} 34. Qxc4 {[%clk 0:01:47.4]} 34... Bg5 {[%clk 0:00:36.9]}
35. Rxd6 {[%clk 0:01:42.2]} 35... Qb7 {[%clk 0:00:32.9]} 36. Qd3 {[%clk
0:01:39.9]} 36... h5 {[%clk 0:00:23]} 37. Rd7 {[%clk 0:01:30]} 37... Qb6 {[%clk
0:00:21.9]} 38. a4 {[%clk 0:01:22.7]} 38... Bxc1 {[%clk 0:00:21.4]} 39. Kxc1
{[%clk 0:01:20.8]} 39... Qg1+ {[%clk 0:00:17.1]} 40. Kd2 {[%clk 0:01:14]} 40...
Qh2+ {[%clk 0:00:12.9]} 41. Kc3 {[%clk 0:01:11.7]} 41... Rc8+ {[%clk 0:00:10.7]}
42. Kb4 {[%clk 0:01:10.6]} 42... Qh4 {[%clk 0:00:10.7]} 43. a5 {[%clk
0:00:59.1]} 43... Qf6 {[%clk 0:00:10.5]} 44. Ka3 {[%clk 0:00:58.7]} 44... Qxg6
{[%clk 0:00:09.8]} 45. Rd8+ {[%clk 0:00:58.3]} 45... Rxd8 {[%clk 0:00:09.6]} 46.
Qxd8+ {[%clk 0:00:59.2]} 46... Kh7 {[%clk 0:00:09.9]} 47. Qd5 {[%clk 0:01:00.1]}
47... Qf6 {[%clk 0:00:04]} 48. Nc5 {[%clk 0:00:53.4]} 48... h4 {[%clk
0:00:04.1]} 49. a6 {[%clk 0:00:51.5]} 49... h3 {[%clk 0:00:03.6]} 50. a7 {[%clk
0:00:48]} 50... h2 {[%clk 0:00:02.7]} 51. Qd1 {[%clk 0:00:46.1]} 1-0

[Event "Early-Titled-Tuesday-Blitz-April-16-2024"]
[Site "Chess.com"]
[Date "2024.04.16"]
[Round "3"]
[White "Statham_01"]
[Black "VerdeNotte"]
[Result "1-0"]
[WhiteElo "2611"]
[BlackElo "2872"]
[TimeControl "180+1"]
[EndTime "8:28:55 PDT"]
[Termination "Statham_01 won by resignation"]

1. e4 {[%clk 0:03:00.9]} 1... e5 {[%clk 0:02:59.6]} 2. Nf3 {[%clk 0:03:00.9]}
2... Nc6 {[%clk 0:03:00]} 3. c3 {[%clk 0:03:01.1]} 3... d5 {[%clk 0:02:57.8]} 4.
Bb5 {[%clk 0:03:00.9]} 4... dxe4 {[%clk 0:02:56.6]} 5. Nxe5 {[%clk 0:03:00.9]}
5... Qg5 {[%clk 0:02:52.9]} 6. Qa4 {[%clk 0:02:57.9]} 6... Qxg2 {[%clk
0:02:37.2]} 7. Bxc6+ {[%clk 0:02:57.2]} 7... bxc6 {[%clk 0:02:33.1]} 8. Qxc6+
{[%clk 0:02:58.1]} 8... Kd8 {[%clk 0:02:32.5]} 9. Rf1 {[%clk 0:02:54.9]} 9...
Bh3 {[%clk 0:02:28.6]} 10. Qxa8+ {[%clk 0:02:51.6]} 10... Ke7 {[%clk 0:02:28.3]}
11. Kd1 {[%clk 0:02:49.3]} 11... Qxf1+ {[%clk 0:02:25.6]} 12. Kc2 {[%clk
0:02:49.6]} 12... f6 {[%clk 0:02:20.5]} 13. b3 {[%clk 0:02:34.7]} 13... fxe5
{[%clk 0:01:47.1]} 14. Ba3+ {[%clk 0:02:32.5]} 14... Kd7 {[%clk 0:01:45.6]} 15.
Qxf8 {[%clk 0:02:27.4]} 15... Qg2 {[%clk 0:01:27.6]} 16. c4 {[%clk 0:01:25]}
16... Qg6 {[%clk 0:00:54.1]} 17. Kb2 {[%clk 0:01:04.6]} 17... h5 {[%clk
0:00:37.8]} 18. Nc3 {[%clk 0:01:02.4]} 18... Be6 {[%clk 0:00:35.6]} 19. Na4
{[%clk 0:00:59.1]} 19... Kc6 {[%clk 0:00:15.8]} 20. Nc5 {[%clk 0:00:51.1]} 20...
Nf6 {[%clk 0:00:13.9]} 21. Qxh8 {[%clk 0:00:48.2]} 21... Bg8 {[%clk 0:00:14.2]}
22. Rc1 {[%clk 0:00:40.4]} 22... a5 {[%clk 0:00:14]} 23. Ka1 {[%clk 0:00:35]}
23... Qg2 {[%clk 0:00:13.7]} 24. Na4 {[%clk 0:00:27.7]} 24... Kd7 {[%clk
0:00:12.1]} 25. Nc3 {[%clk 0:00:23.7]} 25... Ke6 {[%clk 0:00:03.5]} 26. Nd5
{[%clk 0:00:22.2]} 26... Kf7 {[%clk 0:00:01.9]} 27. Nxf6 {[%clk 0:00:21.7]}
27... Kxf6 {[%clk 0:00:01.7]} 28. Qxg8 {[%clk 0:00:20.6]} 28... Qxh2 {[%clk
0:00:02.3]} 29. Qf8+ {[%clk 0:00:20.4]} 29... Kg6 {[%clk 0:00:02.9]} 30. Qe8+
{[%clk 0:00:20.4]} 30... Kh7 {[%clk 0:00:03.3]} 31. Bb2 {[%clk 0:00:20.2]} 31...
c5 {[%clk 0:00:02]} 32. Qxe5 {[%clk 0:00:20.1]} 32... Qg2 {[%clk 0:00:02.7]} 33.
a4 {[%clk 0:00:18.1]} 33... Qg6 {[%clk 0:00:01.9]} 34. Ka2 {[%clk 0:00:17.4]}
34... h4 {[%clk 0:00:01.8]} 35. Rh1 {[%clk 0:00:17.4]} 35... Qh6 {[%clk
0:00:02.5]} 36. Rxh4 {[%clk 0:00:17.6]} 36... Kg6 {[%clk 0:00:01.6]} 1-0

[Event "Early-Titled-Tuesday-Blitz-April-16-2024"]
[Site "Chess.com"]
[Date "2024.04.16"]
[Round "3"]
[White "dosto07"]
[Black "Witik"]
[Result "0-1"]
[WhiteElo "2515"]
[BlackElo "2713"]
[TimeControl "180+1"]
[EndTime "8:28:55 PDT"]
[Termination "Witik won by resignation"]

1. e4 {[%clk 0:03:00.9]} 1... c6 {[%clk 0:02:59.2]} 2. d4 {[%clk 0:03:00.5]}
2... d5 {[%clk 0:02:59.9]} 3. Nc3 {[%clk 0:02:59.1]} 3... dxe4 {[%clk
0:03:00.3]} 4. Nxe4 {[%clk 0:03:00]} 4... Nf6 {[%clk 0:03:00.9]} 5. Nxf6+ {[%clk
0:03:00.4]} 5... exf6 {[%clk 0:03:01.8]} 6. c3 {[%clk 0:03:00.9]} 6... Bd6
{[%clk 0:03:02.3]} 7. Bd3 {[%clk 0:03:01.5]} 7... O-O {[%clk 0:03:03]} 8. Ne2
{[%clk 0:03:02.2]} 8... Re8 {[%clk 0:03:03.3]} 9. O-O {[%clk 0:03:02.6]} 9...
Nd7 {[%clk 0:03:03.3]} 10. Qc2 {[%clk 0:02:54.8]} 10... Nf8 {[%clk 0:03:03.1]}
11. Bd2 {[%clk 0:02:50.6]} 11... Ng6 {[%clk 0:03:02.3]} 12. Rae1 {[%clk
0:02:49.4]} 12... Qc7 {[%clk 0:02:42]} 13. h3 {[%clk 0:02:47.6]} 13... Be6
{[%clk 0:02:35.5]} 14. c4 {[%clk 0:02:46.9]} 14... Rad8 {[%clk 0:02:25]} 15. f4
{[%clk 0:02:38.7]} 15... Bc8 {[%clk 0:02:20]} 16. b4 {[%clk 0:02:17.3]} 16... b6
{[%clk 0:02:10.3]} 17. c5 {[%clk 0:02:10.7]} 17... Bf8 {[%clk 0:02:08.9]} 18. f5
{[%clk 0:02:00.4]} 18... Ne7 {[%clk 0:02:06.6]} 19. Bf4 {[%clk 0:01:59.9]} 19...
Qd7 {[%clk 0:02:01.8]} 20. Be4 {[%clk 0:01:37.8]} 20... Nd5 {[%clk 0:01:46.5]}
21. a3 {[%clk 0:01:15.5]} 21... Ba6 {[%clk 0:01:42.7]} 22. Bd3 {[%clk
0:01:09.7]} 22... Bxd3 {[%clk 0:01:32.3]} 23. Qxd3 {[%clk 0:01:10]} 23... Nxf4
{[%clk 0:01:13.6]} 24. Nxf4 {[%clk 0:01:05.7]} 24... Rxe1 {[%clk 0:01:12.7]} 25.
Rxe1 {[%clk 0:01:04.7]} 25... bxc5 {[%clk 0:01:09.6]} 26. bxc5 {[%clk
0:01:03.3]} 26... Qxd4+ {[%clk 0:01:07.8]} 27. Qxd4 {[%clk 0:01:03]} 27... Rxd4
{[%clk 0:01:08.7]} 28. Nh5 {[%clk 0:00:54.4]} 28... Rh4 {[%clk 0:00:57.2]} 29.
g4 {[%clk 0:00:51.2]} 29... Rxh3 {[%clk 0:00:54.7]} 30. Re8 {[%clk 0:00:49.5]}
30... Rxa3 {[%clk 0:00:44.6]} 31. Rc8 {[%clk 0:00:47.1]} 31... Ra4 {[%clk
0:00:40.3]} 32. Kf2 {[%clk 0:00:43.4]} 32... Rxg4 {[%clk 0:00:38.6]} 33. Rxc6
{[%clk 0:00:38.7]} 33... Rc4 {[%clk 0:00:36]} 34. Rc7 {[%clk 0:00:34.9]} 34...
Rxc5 {[%clk 0:00:31.2]} 35. Rxc5 {[%clk 0:00:27.1]} 35... Bxc5+ {[%clk
0:00:30.8]} 36. Kf3 {[%clk 0:00:28]} 36... a5 {[%clk 0:00:30.6]} 37. Nf4 {[%clk
0:00:28.2]} 37... a4 {[%clk 0:00:30]} 38. Nd3 {[%clk 0:00:28.8]} 38... Bd6
{[%clk 0:00:27.6]} 39. Nc1 {[%clk 0:00:27.5]} 39... a3 {[%clk 0:00:27.8]} 40.
Na2 {[%clk 0:00:27.9]} 40... g6 {[%clk 0:00:26.6]} 41. Kg4 {[%clk 0:00:28.1]}
41... h5+ {[%clk 0:00:26.7]} 42. Kh4 {[%clk 0:00:27.7]} 42... Kg7 {[%clk
0:00:26.7]} 43. Nc3 {[%clk 0:00:25]} 43... Be5 {[%clk 0:00:26.8]} 44. Na2 {[%clk
0:00:25]} 44... Kh6 {[%clk 0:00:26.2]} 45. fxg6 {[%clk 0:00:25]} 45... fxg6
{[%clk 0:00:25.8]} 46. Kh3 {[%clk 0:00:25.9]} 46... g5 {[%clk 0:00:25.8]} 47.
Kg2 {[%clk 0:00:25.6]} 47... g4 {[%clk 0:00:26.1]} 48. Kh1 {[%clk 0:00:25]}
48... h4 {[%clk 0:00:26.1]} 49. Kg1 {[%clk 0:00:25.4]} 49... Kg5 {[%clk
0:00:25.9]} 50. Kh1 {[%clk 0:00:25.8]} 50... h3 {[%clk 0:00:24.9]} 51. Kg1
{[%clk 0:00:26]} 51... g3 {[%clk 0:00:25.1]} 52. Kh1 {[%clk 0:00:26.3]} 52...
g2+ {[%clk 0:00:25.1]} 53. Kg1 {[%clk 0:00:25.2]} 53... Bd4+ {[%clk 0:00:25.5]}
0-1

[Event "Early-Titled-Tuesday-Blitz-April-16-2024"]
[Site "Chess.com"]
[Date "2024.04.16"]
[Round "3"]
[White "Dinosaurio_1975"]
[Black "AlessiaSanteramo"]
[Result "1-0"]
[WhiteElo "2572"]
[BlackElo "2322"]
[TimeControl "180+1"]
[EndTime "8:28:57 PDT"]
[Termination "Dinosaurio_1975 won by checkmate"]

1. e4 {[%clk 0:02:38.5]} 1... e5 {[%clk 0:02:59.5]} 2. Nf3 {[%clk 0:02:38.5]}
2... Nc6 {[%clk 0:02:54.1]} 3. Bc4 {[%clk 0:02:38.9]} 3... Nf6 {[%clk
0:02:53.3]} 4. d3 {[%clk 0:02:38.6]} 4... Bc5 {[%clk 0:02:52.6]} 5. Be3 {[%clk
0:02:38.7]} 5... Bb6 {[%clk 0:02:44.6]} 6. O-O {[%clk 0:02:38.2]} 6... d6 {[%clk
0:02:38.8]} 7. a4 {[%clk 0:02:37.9]} 7... Bg4 {[%clk 0:02:30.3]} 8. Nbd2 {[%clk
0:02:36.6]} 8... Na5 {[%clk 0:01:56.4]} 9. Ba2 {[%clk 0:02:32.1]} 9... c5 {[%clk
0:01:56.4]} 10. h3 {[%clk 0:02:24.4]} 10... Be6 {[%clk 0:01:55.2]} 11. Bxe6
{[%clk 0:02:08.1]} 11... fxe6 {[%clk 0:01:55.1]} 12. Ng5 {[%clk 0:01:59.3]}
12... Qe7 {[%clk 0:01:53.6]} 13. f4 {[%clk 0:01:50]} 13... exf4 {[%clk 0:01:49]}
14. Bxf4 {[%clk 0:01:33.5]} 14... c4+ {[%clk 0:01:48.9]} 15. Kh1 {[%clk
0:01:33.9]} 15... cxd3 {[%clk 0:01:45.6]} 16. cxd3 {[%clk 0:01:34.8]} 16... O-O
{[%clk 0:01:43.8]} 17. Nb3 {[%clk 0:01:28.7]} 17... h6 {[%clk 0:01:37.3]} 18.
Nf3 {[%clk 0:01:24.9]} 18... Rae8 {[%clk 0:01:19.3]} 19. Nxa5 {[%clk 0:01:21]}
19... Bxa5 {[%clk 0:01:19.4]} 20. Be3 {[%clk 0:01:19.5]} 20... d5 {[%clk
0:01:13.2]} 21. Ne5 {[%clk 0:00:54.6]} 21... Qb4 {[%clk 0:00:53]} 22. Ng6 {[%clk
0:00:41.7]} 22... Rf7 {[%clk 0:00:51.9]} 23. e5 {[%clk 0:00:35.1]} 23... Nh7
{[%clk 0:00:26.8]} 24. Rxf7 {[%clk 0:00:33.3]} 24... Kxf7 {[%clk 0:00:27.7]} 25.
Qh5 {[%clk 0:00:32.1]} 25... Kg8 {[%clk 0:00:25.7]} 26. Rf1 {[%clk 0:00:29.7]}
26... Bd8 {[%clk 0:00:18.5]} 27. Nf4 {[%clk 0:00:14.1]} 27... Qe7 {[%clk
0:00:16.9]} 28. Ng6 {[%clk 0:00:09.8]} 28... Qd7 {[%clk 0:00:17]} 29. Kh2 {[%clk
0:00:10]} 29... Bg5 {[%clk 0:00:15.6]} 30. Bxg5 {[%clk 0:00:09.4]} 30... Nxg5
{[%clk 0:00:15.9]} 31. h4 {[%clk 0:00:09.2]} 31... Nf7 {[%clk 0:00:12.3]} 32.
Qf3 {[%clk 0:00:08.5]} 32... Nh8 {[%clk 0:00:06.2]} 33. h5 {[%clk 0:00:02.9]}
33... Nxg6 {[%clk 0:00:05.5]} 34. hxg6 {[%clk 0:00:03.8]} 34... Qe7 {[%clk
0:00:06.4]} 35. Qf7+ {[%clk 0:00:04]} 35... Kh8 {[%clk 0:00:04.4]} 36. Qxe7
{[%clk 0:00:04.3]} 36... Rxe7 {[%clk 0:00:04.2]} 37. Rf8# {[%clk 0:00:05]} 1-0

[Event "Early-Titled-Tuesday-Blitz-April-16-2024"]
[Site "Chess.com"]
[Date "2024.04.16"]
[Round "3"]
[White "M1711"]
[Black "PLAYER_2006_M"]
[Result "0-1"]
[WhiteElo "2705"]
[BlackElo "2984"]
[TimeControl "180+1"]
[EndTime "8:28:58 PDT"]
[Termination "PLAYER_2006_M won on time"]

1. e4 {[%clk 0:03:00.9]} 1... e5 {[%clk 0:02:59.3]} 2. Nf3 {[%clk 0:03:00.5]}
2... Nf6 {[%clk 0:02:59.4]} 3. Nxe5 {[%clk 0:03:00.2]} 3... d6 {[%clk
0:02:59.6]} 4. Nf3 {[%clk 0:02:58.9]} 4... Nxe4 {[%clk 0:02:59.8]} 5. d3 {[%clk
0:02:59.1]} 5... Nf6 {[%clk 0:02:59.7]} 6. d4 {[%clk 0:02:59.1]} 6... g6 {[%clk
0:03:00.3]} 7. c4 {[%clk 0:02:56]} 7... Bg7 {[%clk 0:03:00]} 8. Nc3 {[%clk
0:02:55.8]} 8... O-O {[%clk 0:03:00.2]} 9. Be2 {[%clk 0:02:56.1]} 9... Nc6
{[%clk 0:02:46]} 10. O-O {[%clk 0:02:54.9]} 10... Re8 {[%clk 0:02:40.7]} 11. Bf4
{[%clk 0:02:50.6]} 11... Ne4 {[%clk 0:02:29.6]} 12. Re1 {[%clk 0:02:39.4]} 12...
Bf5 {[%clk 0:02:08.6]} 13. Bd3 {[%clk 0:02:00.1]} 13... Nxc3 {[%clk 0:02:07.8]}
14. Rxe8+ {[%clk 0:01:57.9]} 14... Qxe8 {[%clk 0:02:07.1]} 15. bxc3 {[%clk
0:01:58.4]} 15... Qd7 {[%clk 0:02:04]} 16. Rb1 {[%clk 0:01:26.9]} 16... b6
{[%clk 0:02:01.1]} 17. Rb5 {[%clk 0:01:26.3]} 17... Bxd3 {[%clk 0:02:00.4]} 18.
Qxd3 {[%clk 0:01:27.2]} 18... Re8 {[%clk 0:01:59.5]} 19. h3 {[%clk 0:01:24.3]}
19... h6 {[%clk 0:01:59.3]} 20. Rb1 {[%clk 0:01:13.7]} 20... Na5 {[%clk
0:01:57.1]} 21. c5 {[%clk 0:00:48]} 21... dxc5 {[%clk 0:01:53.4]} 22. Qa6 {[%clk
0:00:48.3]} 22... Qf5 {[%clk 0:01:44.2]} 23. Rf1 {[%clk 0:00:25.9]} 23... Qxf4
{[%clk 0:01:42.2]} 24. Qxa7 {[%clk 0:00:25.2]} 24... cxd4 {[%clk 0:01:40.1]} 25.
cxd4 {[%clk 0:00:24.5]} 25... Qd6 {[%clk 0:01:10.7]} 26. Rc1 {[%clk 0:00:22.4]}
26... Nc6 {[%clk 0:00:51.8]} 27. Qa4 {[%clk 0:00:20.2]} 27... Re6 {[%clk
0:00:49.5]} 28. Rd1 {[%clk 0:00:09.6]} 28... Qd5 {[%clk 0:00:44.4]} 29. a3
{[%clk 0:00:08.5]} 29... Kh7 {[%clk 0:00:43.1]} 30. Qc2 {[%clk 0:00:04.1]} 30...
Rd6 {[%clk 0:00:32.3]} 31. Kh1 {[%clk 0:00:02.6]} 31... Rd7 {[%clk 0:00:28.2]}
32. Qc3 {[%clk 0:00:02]} 32... Nxd4 {[%clk 0:00:27.6]} 33. Qc1 {[%clk
0:00:01.4]} 33... c5 {[%clk 0:00:25.8]} 34. Nh2 {[%clk 0:00:01.7]} 34... Re7
{[%clk 0:00:24]} 35. Ng4 {[%clk 0:00:02]} 35... Re2 {[%clk 0:00:20.5]} 36. Ne3
{[%clk 0:00:02.1]} 36... Qe4 {[%clk 0:00:19.9]} 37. Rf1 {[%clk 0:00:01.8]} 37...
Nf5 {[%clk 0:00:19.6]} 38. Ng4 {[%clk 0:00:01.6]} 38... h5 {[%clk 0:00:19]} 39.
Nh2 {[%clk 0:00:02]} 39... Nh4 {[%clk 0:00:18.5]} 40. Rg1 {[%clk 0:00:01.2]}
40... Rxf2 {[%clk 0:00:18.5]} 0-1

[Event "Early-Titled-Tuesday-Blitz-April-16-2024"]
[Site "Chess.com"]
[Date "2024.04.16"]
[Round "3"]
[White "Savagelittlemole"]
[Black "Egor_Koshulyan"]
[Result "0-1"]
[WhiteElo "2517"]
[BlackElo "2735"]
[TimeControl "180+1"]
[EndTime "8:29:00 PDT"]
[Termination "Egor_Koshulyan won on time"]

1. e4 {[%clk 0:03:00.9]} 1... e5 {[%clk 0:03:00.1]} 2. Nf3 {[%clk 0:03:01.1]}
2... Nc6 {[%clk 0:03:00.4]} 3. Bc4 {[%clk 0:03:01.6]} 3... Bc5 {[%clk
0:03:00.4]} 4. O-O {[%clk 0:02:59.4]} 4... Nf6 {[%clk 0:03:00]} 5. d3 {[%clk
0:02:59.7]} 5... d6 {[%clk 0:02:58.4]} 6. a4 {[%clk 0:02:59.9]} 6... a6 {[%clk
0:02:58.1]} 7. Nc3 {[%clk 0:02:59.9]} 7... Bg4 {[%clk 0:02:51.1]} 8. h3 {[%clk
0:02:56.5]} 8... Bh5 {[%clk 0:02:50.6]} 9. Bg5 {[%clk 0:02:47.7]} 9... h6 {[%clk
0:02:40.3]} 10. Bxf6 {[%clk 0:02:46.9]} 10... Qxf6 {[%clk 0:02:41.2]} 11. Nd5
{[%clk 0:02:47.3]} 11... Qd8 {[%clk 0:02:41.6]} 12. c3 {[%clk 0:02:43.3]} 12...
Qd7 {[%clk 0:02:37.8]} 13. b4 {[%clk 0:02:40.7]} 13... Ba7 {[%clk 0:02:36.8]}
14. b5 {[%clk 0:02:36.2]} 14... Na5 {[%clk 0:02:25]} 15. Ba2 {[%clk 0:02:30.7]}
15... O-O {[%clk 0:02:22.9]} 16. bxa6 {[%clk 0:02:18.2]} 16... bxa6 {[%clk
0:02:21.9]} 17. g4 {[%clk 0:02:04.5]} 17... Bg6 {[%clk 0:02:17.6]} 18. Nh4
{[%clk 0:01:57.7]} 18... Kh7 {[%clk 0:02:15.2]} 19. Rb1 {[%clk 0:01:52.3]} 19...
c6 {[%clk 0:02:15]} 20. Ne3 {[%clk 0:01:51.5]} 20... d5 {[%clk 0:02:04.4]} 21.
exd5 {[%clk 0:01:40.5]} 21... Bxe3 {[%clk 0:02:04.1]} 22. fxe3 {[%clk
0:01:38.8]} 22... cxd5 {[%clk 0:02:04]} 23. Qe2 {[%clk 0:01:11.9]} 23... Rac8
{[%clk 0:01:53.9]} 24. e4 {[%clk 0:00:50.9]} 24... dxe4 {[%clk 0:01:49.9]} 25.
Nxg6 {[%clk 0:00:51.2]} 25... fxg6 {[%clk 0:01:47.3]} 26. Qxe4 {[%clk
0:00:49.9]} 26... Rxf1+ {[%clk 0:01:40.1]} 27. Rxf1 {[%clk 0:00:50.8]} 27...
Rxc3 {[%clk 0:01:40.2]} 28. Bf7 {[%clk 0:00:35.9]} 28... Qd4+ {[%clk 0:01:04.3]}
29. Kg2 {[%clk 0:00:31]} 29... Qd6 {[%clk 0:00:48.8]} 30. h4 {[%clk 0:00:11.7]}
30... Qc6 {[%clk 0:00:31.4]} 31. h5 {[%clk 0:00:09.3]} 31... Qxe4+ {[%clk
0:00:27.4]} 32. dxe4 {[%clk 0:00:10.2]} 32... gxh5 {[%clk 0:00:26.5]} 33. gxh5
{[%clk 0:00:10.9]} 33... Rc8 {[%clk 0:00:17.3]} 34. Bg6+ {[%clk 0:00:05]} 34...
Kg8 {[%clk 0:00:18.2]} 35. Rd1 {[%clk 0:00:02.9]} 35... Nc4 {[%clk 0:00:16.9]}
36. Rd7 {[%clk 0:00:01.4]} 36... Ne3+ {[%clk 0:00:17.3]} 0-1

[Event "Early-Titled-Tuesday-Blitz-April-16-2024"]
[Site "Chess.com"]
[Date "2024.04.16"]
[Round "3"]
[White "WiktoriaPOL"]
[Black "Dixit_Nikhil"]
[Result "1/2-1/2"]
[WhiteElo "2399"]
[BlackElo "2593"]
[TimeControl "180+1"]
[EndTime "8:29:01 PDT"]
[Termination "Game drawn by repetition"]

1. c4 {[%clk 0:03:00.9]} 1... Nf6 {[%clk 0:02:58.4]} 2. Nc3 {[%clk 0:03:00.6]}
2... g6 {[%clk 0:02:56.5]} 3. g3 {[%clk 0:03:00]} 3... Bg7 {[%clk 0:02:55.6]} 4.
Bg2 {[%clk 0:02:59]} 4... O-O {[%clk 0:02:56.5]} 5. e4 {[%clk 0:02:58.7]} 5...
Nc6 {[%clk 0:02:56.1]} 6. Nge2 {[%clk 0:02:58.7]} 6... a6 {[%clk 0:02:53.8]} 7.
d3 {[%clk 0:02:58.1]} 7... Rb8 {[%clk 0:02:53.8]} 8. a4 {[%clk 0:02:57.6]} 8...
e6 {[%clk 0:02:48.5]} 9. O-O {[%clk 0:02:55.4]} 9... Nb4 {[%clk 0:02:45.1]} 10.
h3 {[%clk 0:02:52.7]} 10... d5 {[%clk 0:02:44.6]} 11. e5 {[%clk 0:02:41.9]}
11... Nd7 {[%clk 0:02:41.7]} 12. cxd5 {[%clk 0:02:39.7]} 12... Nxe5 {[%clk
0:02:39.1]} 13. d4 {[%clk 0:02:38]} 13... Ned3 {[%clk 0:02:26.6]} 14. Be3 {[%clk
0:02:24.7]} 14... Nxb2 {[%clk 0:02:24]} 15. Qb1 {[%clk 0:02:13.3]} 15... N2d3
{[%clk 0:02:19.7]} 16. Be4 {[%clk 0:02:08.2]} 16... exd5 {[%clk 0:01:58.6]} 17.
Bxd3 {[%clk 0:02:07.5]} 17... Nxd3 {[%clk 0:01:59.3]} 18. Qxd3 {[%clk
0:02:08.1]} 18... Bxh3 {[%clk 0:02:00]} 19. Rfc1 {[%clk 0:02:05.5]} 19... Bf5
{[%clk 0:01:50.5]} 20. Qd2 {[%clk 0:02:03.2]} 20... Qd7 {[%clk 0:01:47.7]} 21.
Nf4 {[%clk 0:02:02.6]} 21... c6 {[%clk 0:01:46.8]} 22. Nd3 {[%clk 0:02:00.5]}
22... h5 {[%clk 0:01:41.5]} 23. Nc5 {[%clk 0:01:51.1]} 23... Qc8 {[%clk
0:01:41.4]} 24. Bh6 {[%clk 0:01:45.2]} 24... Re8 {[%clk 0:01:38.3]} 25. Bxg7
{[%clk 0:01:42.6]} 25... Kxg7 {[%clk 0:01:39.2]} 26. Re1 {[%clk 0:01:40.9]}
26... Rxe1+ {[%clk 0:01:34.1]} 27. Rxe1 {[%clk 0:01:39.2]} 27... b6 {[%clk
0:01:34.5]} 28. Nd3 {[%clk 0:01:36.2]} 28... Qd7 {[%clk 0:01:34.4]} 29. Ne5
{[%clk 0:01:36.2]} 29... Qd6 {[%clk 0:01:33.5]} 30. Qf4 {[%clk 0:01:28.7]} 30...
Re8 {[%clk 0:01:27.6]} 31. Rd1 {[%clk 0:01:22.8]} 31... b5 {[%clk 0:01:25.7]}
32. axb5 {[%clk 0:01:15.9]} 32... cxb5 {[%clk 0:01:25.7]} 33. Qf3 {[%clk
0:01:02.2]} 33... Be6 {[%clk 0:00:58.4]} 34. Ra1 {[%clk 0:00:43.3]} 34... Rc8
{[%clk 0:00:47.5]} 35. Ne2 {[%clk 0:00:38.4]} 35... b4 {[%clk 0:00:38.5]} 36.
Nf4 {[%clk 0:00:36.6]} 36... Rc3 {[%clk 0:00:36.7]} 37. Nxe6+ {[%clk 0:00:25.1]}
37... Qxe6 {[%clk 0:00:37.6]} 38. Rxa6 {[%clk 0:00:20.6]} 38... Qxa6 {[%clk
0:00:14.5]} 39. Qxf7+ {[%clk 0:00:20.2]} 39... Kh6 {[%clk 0:00:14.5]} 40. Qf8+
{[%clk 0:00:15.3]} 40... Kh7 {[%clk 0:00:14.5]} 41. Qf7+ {[%clk 0:00:08.2]}
41... Kh6 {[%clk 0:00:14.4]} 42. Qf8+ {[%clk 0:00:07.4]} 42... Kh7 {[%clk
0:00:14.8]} 43. Qf7+ {[%clk 0:00:07.3]} 43... Kh6 {[%clk 0:00:15.3]} 1/2-1/2